bitfinex-derivatives/quotes_ETHF0:USTF0_20250417
["timestamp","ask_amount","ask_price","bid_price","bid_amount"]
[1744883707005,1.26398763,1594.6,1594.5,10.6954]
[1744883707209,1.26398763,1594.6,1594.5,5.6954]
[1744883707512,1.26398763,1594.6,1594.5,6.95006]
[1744883707706,1.26398763,1594.6,1594.5,5.6954]
[1744883707908,1.26398763,1594.6,1594.5,6.95006]
[1744883712617,1.26398763,1594.6,1594.5,5.6954]
[1744883713917,1.26398763,1594.6,1594.5,6.95006]
[1744883714614,1.26398763,1594.6,1594.5,5.6954]
[1744883714816,3.83808763,1594.6,1594.5,5.6954]
[1744883715012,3.83808763,1594.6,1594.5,1.6352]
[1744883716325,3.83808763,1594.6,1594.5,2.88986]
[1744883716826,3.83808763,1594.6,1594.5,1.6352]
[1744883717322,3.83808763,1594.6,1594.5,2.88986]
[1744883720132,3.83808763,1594.6,1594.5,1.6352]
[1744883720630,1.25466,1594.5,1594.4,5.27777]
[1744883720831,2.87626,1594.5,1594.4,5.27777]
[1744883721229,2.87626,1594.5,1594.4,6.87427]
[1744883721632,2.87626,1594.5,1594.4,3.66647]
[1744883721936,2.87626,1594.5,1594.4,6.87427]
[1744883726525,2.87626,1594.5,1594.4,3.66647]
[1744883726727,2.87626,1594.5,1594.4,6.87427]
[1744883732841,1.25466,1594.5,1594.4,6.87427]
[1744883733041,1.26405763,1594.6,1594.5,1.25466]
[1744883733338,1.26405763,1594.6,1594.5,1.6433]
[1744883733538,2.93705763,1594.6,1594.5,1.6433]
[1744883733739,2.93705763,1594.6,1594.5,2.89796]
[1744883734143,1.26405763,1594.6,1594.5,2.89796]
[1744883734840,1.26405763,1594.6,1594.5,1.6433]
[1744883735842,1.26405763,1594.6,1594.5,2.89796]
[1744883738343,1.26405763,1594.6,1594.5,1.6433]
[1744883738640,3.00955763,1594.6,1594.5,2.89796]
[1744883739139,3.00955763,1594.6,1594.5,1.6433]
[1744883739737,3.00955763,1594.6,1594.5,2.89796]
[1744883740242,3.00955763,1594.6,1594.5,1.6433]
[1744883741342,3.00955763,1594.6,1594.5,2.89796]
[1744883741839,3.00955763,1594.6,1594.5,1.6433]
[1744883742441,3.00955763,1594.6,1594.5,2.89796]
[1744883743243,3.00955763,1594.6,1594.5,1.6433]
[1744883744138,1.25474,1594.4,1594.3,0.84520763]
[1744883744636,2.91104,1594.4,1594.3,0.84520763]
[1744883747042,1.25474,1594.4,1594.3,2.10002763]
[1744883747239,1.25474,1594.4,1594.3,3.81412763]
[1744883748348,1.25474,1594.4,1594.3,2.55930763]
[1744883750244,3.73264,1594.4,1594.3,2.55930763]
[1744883751046,3.73264,1594.4,1594.3,3.81412763]
[1744883751234,3.73264,1594.4,1594.3,2.55930763]
[1744883751738,3.73264,1594.4,1594.3,3.81412763]
[1744883752550,7.90228106,1594.4,1594.3,3.81412763]
[1744883753346,5.42438106,1594.4,1594.3,3.81412763]
[1744883756241,1.25474,1594.4,1594.3,3.81412763]
[1744883758256,1.25474,1594.5,1594.4,1.25466]
[1744883758453,1.25474,1594.5,1594.4,6.89636]
[1744883759756,1.25474,1594.5,1594.4,3.68856]
[1744883768754,2.87404763,1594.6,1594.5,1.25466]
[1744883768953,2.87404763,1594.6,1594.5,2.90206]
[1744883769155,2.87404763,1594.6,1594.5,3.73226]
[1744883779670,0.00940763,1594.6,1594.5,3.73226]
[1744883780571,1.26398763,1594.6,1594.5,3.73226]
[1744883781070,3.71928763,1594.6,1594.5,3.73226]
[1744883788283,3.71928763,1594.6,1594.5,2.08486]
[1744883791186,1.65380763,1594.6,1594.5,3.75886]
[1744883794175,0.00940763,1594.6,1594.5,3.75886]
[1744883794988,1.26398763,1594.6,1594.5,3.75886]
[1744883795688,3.73618763,1594.6,1594.5,3.75886]
[1744883797289,3.73618763,1594.6,1594.5,6.96666]
[1744883799292,2.90848763,1594.6,1594.5,6.96666]
[1744883799889,1.65390763,1594.6,1594.5,6.96666]
[1744883800986,2.90848763,1594.6,1594.5,6.96666]
[1744883801293,1.65390763,1594.6,1594.5,6.96666]
[1744883801494,0.00940763,1594.6,1594.5,6.96666]
[1744883806599,0.00940763,1594.6,1594.5,10.2285557]
[1744883815301,0.00940763,1594.6,1594.5,32.37456023]
[1744883818503,1.26398763,1594.6,1594.5,29.87036023]
[1744883818702,1.26398763,1594.6,1594.5,6.4696957]
[1744883818703,2.12428763,1594.6,1594.5,6.4696957]
[1744883818907,9.68408763,1594.6,1594.5,7.7243557]
[1744883819407,9.68408763,1594.6,1594.5,6.4696957]
[1744883820304,9.68408763,1594.6,1594.5,3.2078]
[1744883820506,1.25466,1594.5,1594.4,12.55547912]
[1744883820718,3.00016,1594.5,1594.4,12.55547912]
[1744883821008,8.00016,1594.5,1594.4,12.55547912]
[1744883821710,1.26404763,1594.6,1594.5,1.25466]
[1744883822405,0.00940763,1594.6,1594.5,4.46246]
[1744883823011,2.55640763,1594.6,1594.5,4.46246]
[1744883826911,3.81098763,1594.6,1594.5,4.46246]
[1744883827313,2.55640763,1594.6,1594.5,4.46246]
[1744883830213,2.55640763,1594.6,1594.5,1.25466]
[1744883830415,2.55640763,1594.6,1594.5,4.46246]
[1744883832817,2.55640763,1594.6,1594.5,6.95326]
[1744883833921,1.68180763,1594.6,1594.5,6.95326]
[1744883834126,0.00940763,1594.6,1594.5,11.00626]
[1744883834310,4.16964106,1594.8,1594.7,1.2545]
[1744883834618,4.16964106,1594.8,1594.7,4.4623]
[1744883834807,4.16964106,1594.8,1594.7,7.0174]
[1744883837621,2.52470763,1594.9,1594.8,1.25442]
[1744883837819,2.52470763,1594.9,1594.8,6.93022]
[1744883838016,0.00940763,1594.9,1594.8,6.93022]
[1744883838224,0.00940763,1594.9,1594.8,11.93022]
[1744883841624,7.63e-06,1594.9,1594.8,11.93022]
[1744883841823,7.63e-06,1594.9,1594.8,15.1921157]
[1744883843926,7.63e-06,1594.9,1594.8,10.1921157]
[1744883844528,7.63e-06,1594.9,1594.8,13.3999157]
[1744883849329,0.8555,1595.4,1595.2,1.25411]
[1744883849527,6.65314106,1595.5,1595.4,1.25395]
[1744883849716,5.04514106,1595.5,1595.4,1.25395]
[1744883849921,10.04514106,1595.5,1595.4,1.25395]
[1744883850629,5.8755,1595.5,1595.4,1.25395]
[1744883855033,0.8755,1595.5,1595.4,1.25395]
[1744883855233,5.8755,1595.5,1595.4,1.25395]
[1744883857030,0.8755,1595.5,1595.4,1.25395]
[1744883859039,0.81240763,1595.6,1595.5,1.25387]
[1744883860340,0.81240763,1595.6,1595.5,4.46167]
[1744883861346,1.60810763,1595.6,1595.5,4.46167]
[1744883864547,1.60810763,1595.6,1595.5,8.51067]
[1744883869851,0.80510763,1595.6,1595.5,8.51067]
[1744883870051,0.80510763,1595.6,1595.5,10.26297]
[1744883881260,0.80510763,1595.6,1595.5,4.46167]
[1744883881458,0.80510763,1595.6,1595.4,1.2539]
[1744883881658,2.5069,1595.5,1595.4,1.2539]
[1744883883155,2.5069,1595.5,1595.4,2.9963]
[1744883883358,1.7022,1595.5,1595.4,2.9963]
[1744883886565,1.7022,1595.5,1595.4,1.2539]
[1744883886767,2.5627,1595.5,1595.4,1.2539]
[1744883888772,1.7022,1595.5,1595.4,1.2539]
[1744883888968,1.7022,1595.5,1595.4,2.8886]
[1744883893967,0.80510763,1595.6,1595.5,1.25387]
[1744883894169,2.42050763,1595.6,1595.5,4.46167]
[1744883902576,2.42050763,1595.6,1595.5,1.25387]
[1744883902767,3.67434763,1595.6,1595.5,1.25387]
[1744883902972,8.67434763,1595.6,1595.5,1.25387]
[1744883903371,3.67434763,1595.6,1595.5,1.25387]
[1744883908783,7.84398869,1595.6,1595.5,1.25387]
[1744883921087,4.17904869,1595.6,1595.5,2.99077]
[1744883921988,4.17904869,1595.6,1595.5,6.19857]
[1744883925390,0.00940763,1595.6,1595.5,6.19857]
[1744883932699,0.00940763,1595.6,1595.5,2.99077]
[1744883932995,0.00940763,1595.6,1595.5,6.19857]
[1744883935198,0.00940763,1595.6,1595.5,2.99077]
[1744883935497,0.00940763,1595.6,1595.5,6.19857]
[1744883936095,0.00940763,1595.6,1595.5,2.99077]
[1744883936300,0.00940763,1595.6,1595.5,6.19857]
[1744883937611,0.00940763,1595.6,1595.5,10.24357]
[1744883938004,5.88064106,1595.8,1595.7,1.25371]
[1744883938005,4.16964106,1595.8,1595.7,1.25371]
[1744883938201,4.16964106,1595.8,1595.7,4.46151]
[1744883938404,4.16964106,1595.8,1595.7,6.97971]
[1744883940705,1.654,1595.9,1595.8,1.25364]
[1744883940907,1.654,1595.9,1595.8,3.76124]
[1744883948612,1.654,1595.9,1595.8,6.96904]
[1744883950626,1.654,1595.9,1595.8,4.46144]
[1744883950819,2.90756,1595.9,1595.8,3.2078]
[1744883951418,1.25379,1595.6,1595.5,4.46164]
[1744883951622,1.25371,1595.7,1595.6,1.25378]
[1744883951826,4.60469,1595.8,1595.7,1.25371]
[1744883952028,2.98099,1595.8,1595.7,1.25371]
[1744883952320,4.16964106,1596.1,1595.8,1.25364]
[1744883952527,5.02484106,1596.1,1596.0,1.25348]
[1744883953729,5.82574106,1596.1,1596.0,1.25348]
[1744883956329,1.6561,1596.1,1596.0,1.25348]
[1744883959426,1.6561,1596.1,1596.0,2.98078]
[1744883959824,1.6561,1596.1,1596.0,1.25348]
[1744883960127,1.6561,1596.1,1596.0,2.93808]
[1744883960933,0.8009,1596.1,1596.0,2.93808]
[1744883961229,13.54105106,1596.3,1596.2,1.25332]
[1744883961526,14.37525106,1596.3,1596.2,1.25332]
[1744883963629,9.07794106,1596.3,1596.2,1.25332]
[1744883963928,10.33118106,1596.3,1596.2,1.25332]
[1744883964129,9.07794106,1596.3,1596.2,1.25332]
[1744883964728,5.87014106,1596.3,1596.2,1.25332]
[1744883964932,5.87014106,1596.3,1596.2,2.98452]
[1744883965128,7.12338106,1596.3,1596.2,2.98452]
[1744883965430,3.1334,1596.2,1595.9,3.2078]
[1744883965732,1.25348,1596.1,1596.0,1.25347]
[1744883965929,2.10168,1596.1,1596.0,1.25347]
[1744883966230,1.25348,1596.0,1595.9,4.46129]
[1744883966529,2.06878,1596.0,1595.9,4.46129]
[1744883969232,2.06878,1596.0,1595.9,3.2078]
[1744883969528,2.06878,1596.0,1595.8,8.71439]
[1744883969529,1.25364,1595.8,1595.7,7.7233657]
[1744883969729,2.13202,1595.9,1595.8,1.25364]
[1744883970532,2.13202,1595.9,1595.7,4.8546]
[1744883970533,1.25364,1595.8,1595.7,6.10824]
[1744883970731,2.88854,1595.8,1595.7,6.10824]
[1744883971032,1.6349,1595.8,1595.7,6.10824]
[1744883971331,2.88854,1595.8,1595.7,6.10824]
[1744883972130,1.25371,1595.7,1595.6,21.74638681]
[1744883972431,4.62931,1595.7,1595.6,20.92868681]
[1744883972830,4.62931,1595.7,1595.6,22.18247681]
[1744883973035,4.043,1595.9,1595.8,1.25364]
[1744883973230,1.25358,1595.9,1595.8,1.25364]
[1744883973429,3.3756,1596.0,1595.7,3.2171]
[1744883973430,1.25364,1595.8,1595.7,3.2171]
[1744883973627,2.10449,1595.8,1595.7,1.25371]
[1744883973826,2.10449,1595.8,1595.7,4.47081]
[1744883975135,2.10449,1595.8,1595.7,3.2171]
[1744883975330,2.10449,1595.8,1595.7,4.47081]
[1744883976734,2.9336,1595.9,1595.8,1.25364]
[1744883976933,7.10324106,1595.9,1595.8,2.93144]
[1744883977943,7.10324106,1595.9,1595.8,1.6778]
[1744883978138,7.10324106,1595.9,1595.8,1.25364]
[1744883978332,5.84964106,1595.9,1595.8,1.25364]
[1744883978739,7.10320106,1595.9,1595.8,2.91054]
[1744883979340,5.84964106,1595.9,1595.8,2.91054]
[1744883979732,7.10320106,1595.9,1595.8,2.91054]
[1744883980743,2.93356,1595.9,1595.8,2.91054]
[1744883989246,1.68,1595.9,1595.8,2.91054]
[1744883989843,2.93356,1595.9,1595.8,2.91054]
[1744883991546,2.93356,1595.9,1595.8,1.25364]
[1744883994651,2.93356,1595.9,1595.8,3.80284]
[1744883999653,2.93356,1595.9,1595.8,2.5492]
[1744884000859,1.25364,1595.8,1595.7,5.29616]
[1744884001052,3.78764,1595.8,1595.7,5.29616]
[1744884001555,3.78764,1595.8,1595.7,3.2078]
[1744884001860,1.25387,1595.5,1595.4,9.19740769]
[1744884002061,4.46167,1595.5,1595.4,10.95170769]
[1744884002357,1.25387,1595.5,1595.4,12.20565769]
[1744884002756,1.25387,1595.5,1595.4,10.95170769]
[1744884002954,2.95697,1595.5,1595.4,12.20565769]
[1744884003361,1.7031,1595.5,1595.4,12.20565769]
[1744884003553,1.25364,1595.8,1595.7,1.25368]
[1744884003753,3.2078,1595.9,1595.8,1.25364]
[1744884004057,3.2078,1595.9,1595.8,4.61284]
[1744884004258,3.2078,1595.9,1595.8,9.61284]
[1744884005356,3.2078,1595.9,1595.8,4.61284]
[1744884006347,11.72397203,1596.0,1595.9,1.25356]
[1744884006551,11.72397203,1596.0,1595.9,2.92226]
[1744884008348,10.47043203,1596.0,1595.9,2.92226]
[1744884008552,1.25347,1596.1,1595.9,1.6687]
[1744884008753,1.25347,1596.1,1596.0,1.593]
[1744884009258,2.84607,1596.1,1596.0,1.593]
[1744884011055,2.84607,1596.1,1596.0,2.84648]
[1744884015567,11.327262,1596.2,1596.1,1.2534]
[1744884015568,5.438612,1596.2,1596.1,1.2534]
[1744884015775,4.185252,1596.2,1596.1,4.5829]
[1744884016066,5.438572,1596.2,1596.1,4.5829]
[1744884016872,10.329272,1596.2,1596.1,4.5829]
[1744884017367,7.121472,1596.2,1596.1,4.5829]
[1744884017768,10.329272,1596.2,1596.1,4.5829]
[1744884018370,7.121472,1596.2,1596.1,4.5829]
[1744884018569,10.329272,1596.2,1596.1,4.5829]
[1744884019273,7.121472,1596.2,1596.1,4.5829]
[1744884019574,10.329272,1596.2,1596.1,4.5829]
[1744884019975,7.121472,1596.2,1596.1,4.5829]
[1744884020571,6.14402,1596.2,1596.1,4.5829]
[1744884021078,2.93622,1596.2,1596.1,4.5829]
[1744884024180,6.14402,1596.2,1596.1,4.5829]
[1744884032687,6.14402,1596.2,1596.1,3.3295]
[1744884033185,16.15757,1596.2,1595.6,8.37320769]
[1744884033385,1.2537,1595.8,1595.7,1.25371]
[1744884033586,1.25371,1595.7,1595.6,11.32643769]
[1744884034087,2.1236,1595.8,1595.7,1.25371]
[1744884035083,3.7235,1595.8,1595.7,1.25371]
[1744884036090,3.7235,1595.8,1595.7,3.00841]
[1744884038181,3.7235,1595.8,1595.7,1.7547]
[1744884038589,3.7235,1595.8,1595.7,3.00841]
[1744884040788,6.9313,1595.8,1595.7,3.00841]
[1744884046696,11.08058278,1596.0,1595.9,1.25356]
[1744884046893,9.12632278,1596.0,1595.9,1.25356]
[1744884047197,7.87278278,1596.0,1595.9,3.70466]
[1744884047600,9.12626278,1596.0,1595.9,2.4511]
[1744884047795,14.02336278,1596.0,1595.9,2.4511]
[1744884048198,10.81556278,1596.0,1595.9,3.70466]
[1744884050096,5.874552,1596.0,1595.9,3.70466]
[1744884050302,4.185252,1596.0,1595.9,3.70466]
[1744884050502,4.185252,1596.0,1595.9,8.70466]
[1744884051202,4.185252,1596.0,1595.9,3.70466]
[1744884051506,17.37556,1596.2,1596.1,1.2534]
[1744884052106,17.37556,1596.2,1596.1,2.9491]
[1744884053206,16.12223,1596.2,1596.1,2.9491]
[1744884054805,5.6591,1596.2,1596.1,2.9491]
[1744884058004,6.91242,1596.2,1596.1,2.9491]
[1744884058910,5.6591,1596.2,1596.1,2.9491]
[1744884063408,6.91242,1596.2,1596.1,2.9491]
[1744884063911,5.6591,1596.2,1596.1,2.9491]
[1744884069112,6.2676,1596.0,1595.7,8.37320769]
[1744884069412,4.0564,1595.9,1595.8,1.25364]
[1744884069608,5.30996,1595.9,1595.8,1.25364]
[1744884075016,7.04186,1595.9,1595.8,1.25364]
[1744884076018,3.83406,1595.9,1595.8,1.25364]
[1744884076920,2.98546,1595.9,1595.8,1.25364]
[1744884077124,4.185252,1596.0,1595.9,1.25356]
[1744884077316,4.185252,1596.0,1595.9,2.08216]
[1744884077521,4.185252,1596.0,1595.9,3.72596]
[1744884078425,7.109922,1596.1,1596.0,1.25348]
[1744884078620,7.109922,1596.1,1596.0,3.74108]
[1744884079326,7.109922,1596.1,1596.0,0.8634]
[1744884079525,7.109922,1596.1,1595.9,2.08209]
[1744884079526,1.25348,1596.0,1595.9,4.56969]
[1744884079825,3.76188,1596.0,1595.9,4.56969]
[1744884080721,3.76188,1596.0,1595.9,3.3162]
[1744884080928,1.25356,1595.9,1595.8,1.25358]
[1744884081127,2.93646,1595.9,1595.8,1.25358]
[1744884081527,1.6829,1595.9,1595.8,1.25358]
[1744884082526,1.6829,1595.9,1595.8,3.82338]
[1744884082727,2.93646,1595.9,1595.8,3.82338]
[1744884083228,1.6829,1595.9,1595.8,3.82338]
[1744884084028,2.07904,1596.0,1595.9,1.25356]
[1744884084230,1.6735,1596.0,1595.9,1.25356]
[1744884084526,2.5017,1596.0,1595.9,2.95766]
[1744884085318,3.75518,1596.0,1595.9,2.95766]
[1744884091340,3.75518,1596.0,1595.9,3.80396]
[1744884093444,3.75518,1596.0,1595.9,2.5504]
[1744884094345,3.75518,1596.0,1595.9,3.80396]
[1744884094742,3.75518,1596.0,1595.9,2.5504]
[1744884095645,3.75518,1596.0,1595.9,3.80396]
[1744884097139,3.75518,1596.0,1595.9,2.5504]
[1744884097339,3.75518,1596.0,1595.9,3.80396]
[1744884097541,4.185252,1596.1,1596.0,1.25348]
[1744884097753,10.46313,1596.2,1596.1,1.2534]
[1744884098048,10.46313,1596.2,1596.1,4.4612]
[1744884098251,10.46313,1596.2,1596.1,11.0503]
[1744884098451,10.46313,1596.2,1596.1,6.0503]
[1744884101845,2.95177,1596.3,1596.1,6.05023]
[1744884102045,1.696,1596.2,1596.1,6.05023]
[1744884103049,1.696,1596.2,1596.1,2.84243]
[1744884103650,2.05214,1596.4,1596.2,1.25327]
[1744884103851,3.81154,1596.4,1596.2,4.64257]
[1744884104242,1.7594,1596.3,1596.2,4.64257]
[1744884107146,0.7989,1596.4,1596.3,1.25324]
[1744884107346,2.4138,1596.4,1596.3,2.97004]
[1744884108855,4.46091,1596.5,1596.4,1.25316]
[1744884109055,1.25311,1596.5,1596.4,3.78646]
[1744884109356,2.97181,1596.5,1596.4,3.78646]
[1744884109948,2.97181,1596.5,1596.3,1.25318]
[1744884109949,1.25316,1596.4,1596.3,1.25318]
[1744884110251,1.25324,1596.3,1596.2,0.8694]
[1744884110451,0.8186,1596.3,1596.2,1.25326]
[1744884110644,2.5373,1596.3,1596.2,1.25326]
[1744884114260,3.79054,1596.3,1596.2,1.25326]
[1744884114461,2.5373,1596.3,1596.2,1.25326]
[1744884115055,3.79054,1596.3,1596.2,1.25326]
[1744884115359,1.25332,1596.2,1596.1,1.26274763]
[1744884115552,3.80142,1596.2,1596.1,1.26274763]
[1744884115954,14.15066078,1596.6,1596.2,3.13331]
[1744884116155,1.25318,1596.4,1596.3,2.95741]
[1744884116355,1.25318,1596.4,1596.3,2.07824]
[1744884116859,1.25324,1596.3,1596.2,2.97566]
[1744884117048,2.07854,1596.3,1596.2,2.97566]
[1744884117252,0.8253,1596.3,1596.2,2.97566]
[1744884119362,2.5608,1596.3,1596.2,2.97566]
[1744884120863,3.81404,1596.3,1596.2,2.97566]
[1744884121064,3.81404,1596.3,1596.2,1.25326]
[1744884121456,1.25332,1596.2,1596.1,0.00940763]
[1744884121669,11.37645078,1596.2,1596.1,0.00940763]
[1744884121966,16.37645078,1596.2,1596.1,0.00940763]
[1744884122660,1.25364,1595.8,1595.7,9.62685769]
[1744884122863,1.25364,1595.8,1595.7,9.62691769]
[1744884123263,2.84614,1595.8,1595.7,9.62691769]
[1744884125057,1.5925,1595.8,1595.7,9.62691769]
[1744884125258,1.5925,1595.8,1595.7,11.38021769]
[1744884126655,1.5925,1595.8,1595.7,3.00701]
[1744884128458,2.84614,1595.8,1595.7,3.00701]
[1744884128659,4.185252,1595.9,1595.8,1.25364]
[1744884128864,4.185252,1595.9,1595.8,2.85614]
[1744884129060,5.438812,1595.9,1595.8,2.85614]
[1744884129675,7.188412,1595.9,1595.8,1.6025]
[1744884129971,1.25371,1595.7,1595.6,6.12843763]
[1744884130173,1.25371,1595.7,1595.6,7.73093763]
[1744884131563,2.88641,1595.7,1595.6,7.73093763]
[1744884132577,2.1267,1595.8,1595.7,1.25371]
[1744884132777,1.2537,1595.8,1595.7,2.88661]
[1744884134179,4.50482,1595.9,1595.7,2.88661]
[1744884135581,4.50482,1595.9,1595.8,1.25364]
[1744884135878,7.71262,1595.9,1595.7,2.88655]
[1744884136179,7.71262,1595.9,1595.8,1.25364]
[1744884136380,6.07992,1595.9,1595.8,1.25364]
[1744884139881,3.2078,1595.9,1595.8,1.25364]
[1744884140079,3.2078,1595.9,1595.8,3.78304]
[1744884140672,4.46136,1595.9,1595.8,3.78304]
[1744884142181,4.94105078,1596.0,1595.9,1.25356]
[1744884142377,4.94105078,1596.0,1595.9,3.75726]
[1744884143787,1.25352,1596.0,1595.9,3.75726]
[1744884145489,1.25352,1596.0,1595.9,0.8446]
[1744884145790,1.25356,1595.9,1595.8,2.12387]
[1744884145980,2.07016,1595.9,1595.8,2.12387]
[1744884147487,2.07016,1595.9,1595.8,3.77967]
[1744884148683,3.95052,1595.9,1595.6,0.00940763]
[1744884148889,1.25371,1595.7,1595.6,0.00940763]
[1744884149889,4.94124078,1595.7,1595.6,0.00940763]
[1744884151284,6.56014078,1595.7,1595.6,0.00940763]
[1744884151677,11.56014078,1595.7,1595.6,0.00940763]
[1744884151883,1.25403,1595.3,1595.2,10.48891769]
[1744884152084,1.25403,1595.3,1595.2,12.16451769]
[1744884152292,2.99123,1595.3,1595.2,3.79131]
[1744884153088,4.47122763,1595.4,1595.3,1.25403]
[1744884153290,4.47122763,1595.4,1595.3,2.92963]
[1744884153591,6.20842763,1595.4,1595.3,2.92963]
[1744884155184,3.21720763,1595.4,1595.3,2.92963]
[1744884155384,0.00940763,1595.4,1595.3,2.92963]
[1744884157590,1.26335763,1595.4,1595.3,1.6756]
[1744884157791,3.75935763,1595.4,1595.3,2.92963]
[1744884158983,1.25403,1595.3,1595.2,0.8616]
[1744884159186,2.98973,1595.3,1595.2,0.8616]
[1744884159383,2.98973,1595.3,1595.2,2.11571]
[1744884159585,2.98973,1595.3,1595.2,3.80381]
[1744884163293,2.98973,1595.3,1595.2,2.5497]
[1744884163496,1.7357,1595.3,1595.2,3.80381]
[1744884163687,2.98973,1595.3,1595.2,3.80381]
[1744884166197,2.98973,1595.3,1595.2,2.5497]
[1744884166391,2.98973,1595.3,1595.2,0.8616]
[1744884166597,1.25411,1595.2,1595.1,3.84968763]
[1744884166895,2.88711,1595.2,1595.1,2.59550763]
[1744884167094,6.09491,1595.2,1595.1,1.26359763]
[1744884169192,6.09491,1595.2,1595.1,2.98909763]
[1744884170887,2.88711,1595.2,1595.1,2.98909763]
[1744884172599,6.09491,1595.2,1595.1,2.98909763]
[1744884173099,2.88711,1595.2,1595.1,2.98909763]
[1744884175597,3.71461,1595.2,1595.1,2.98909763]
[1744884179795,3.71461,1595.2,1595.1,1.73490763]
[1744884180000,6.92241,1595.2,1595.1,2.98909763]
[1744884180407,5.29307,1595.3,1595.2,1.25411]
[1744884180605,5.29307,1595.3,1595.2,3.86971]
[1744884180805,1.25407,1595.3,1595.2,3.86971]
[1744884181304,5.80090763,1595.4,1595.2,3.86971]
[1744884181509,0.00940763,1595.4,1595.3,3.81713]
[1744884186710,0.00940763,1595.4,1595.3,7.02493]
[1744884195329,0.00940763,1595.4,1595.3,3.81713]
[1744884195523,0.00940763,1595.4,1595.3,7.02493]
[1744884196234,0.00940763,1595.4,1595.3,3.81713]
[1744884196533,0.00940763,1595.4,1595.3,7.02493]
[1744884202635,1.72040763,1595.4,1595.3,7.02493]
[1744884202933,0.00940763,1595.4,1595.3,7.02493]
[1744884207238,7.63e-06,1595.4,1595.3,12.02493]
[1744884208330,7.63e-06,1595.4,1595.3,15.2868257]
[1744884210038,7.63e-06,1595.4,1595.3,33.11134735]
[1744884210930,7.63e-06,1595.4,1595.3,28.11134735]
[1744884211735,7.63e-06,1595.4,1595.3,24.90354735]
[1744884212040,7.63e-06,1595.4,1595.3,28.11134735]
[1744884212445,7.63e-06,1595.4,1595.3,24.90354735]
[1744884212632,7.63e-06,1595.4,1595.3,28.11134735]
[1744884213040,7.63e-06,1595.4,1595.3,10.2868257]
[1744884220141,7.63e-06,1595.4,1595.3,7.02493]
[1744884223344,7.63e-06,1595.4,1595.3,15.39813769]
[1744884227248,7.63e-06,1595.4,1595.3,37.42507416]
[1744884228045,0.80160763,1595.4,1595.3,34.86197416]
[1744884229942,0.80160763,1595.4,1595.3,4.46183]
[1744884232146,2.05555763,1595.4,1595.3,1.25403]
[1744884232446,2.52020763,1595.4,1595.3,1.25403]
[1744884233248,7.52020763,1595.4,1595.3,1.25403]
[1744884237346,2.52020763,1595.4,1595.3,1.25403]
[1744884241358,3.77415763,1595.4,1595.3,1.25403]
[1744884241558,2.52020763,1595.4,1595.3,1.25403]
[1744884241858,3.77415763,1595.4,1595.3,1.25403]
[1744884242054,2.52020763,1595.4,1595.3,1.25403]
[1744884243158,3.77415763,1595.4,1595.3,1.25403]
[1744884245459,6.98195763,1595.4,1595.3,1.25403]
[1744884245660,1.25411,1595.3,1595.2,1.25407]
[1744884245957,3.72391,1595.3,1595.2,1.25407]
[1744884253670,3.72391,1595.3,1595.2,2.92717]
[1744884254671,3.72391,1595.3,1595.2,1.25407]
[1744884254870,1.25411,1595.2,1595.1,2.09552763]
[1744884255173,3.84311,1595.2,1595.1,1.26352763]
[1744884255473,3.84311,1595.2,1595.1,0.00940763]
[1744884255667,7.05091,1595.2,1595.1,0.00940763]
[1744884255874,3.84311,1595.2,1595.1,1.26359763]
[1744884258875,3.84311,1595.2,1595.1,2.99349763]
[1744884262579,4.94162078,1595.3,1595.2,1.25411]
[1744884262779,4.94162078,1595.3,1595.2,4.67141]
[1744884263082,6.67402078,1595.3,1595.2,4.67141]
[1744884264778,3.68753078,1595.3,1595.2,4.67141]
[1744884267183,7.63e-06,1595.4,1595.3,1.25403]
[1744884267479,1.25395763,1595.4,1595.3,2.90673]
[1744884268479,7.63e-06,1595.4,1595.3,2.90673]
[1744884268981,1.25395763,1595.4,1595.3,2.90673]
[1744884269182,7.63e-06,1595.4,1595.3,2.90673]
[1744884269574,2.45790763,1595.4,1595.3,2.90673]
[1744884270181,2.45790763,1595.4,1595.2,1.7466]
[1744884270385,4.46183,1595.3,1595.1,0.00940763]
[1744884270575,0.8259,1595.2,1595.1,1.26351763]
[1744884270777,3.81901,1595.2,1595.1,3.69901763]
[1744884270977,2.5649,1595.2,1595.1,3.69901763]
[1744884274985,9.12680041,1595.4,1595.3,1.25403]
[1744884274986,7.87279041,1595.4,1595.3,1.25403]
[1744884275191,10.37169041,1595.4,1595.3,1.25403]
[1744884275673,10.37169041,1595.4,1595.3,2.88773]
[1744884276287,11.62564041,1595.4,1595.3,2.88773]
[1744884276478,10.37169041,1595.4,1595.3,2.88773]
[1744884277585,11.62564041,1595.4,1595.3,2.88773]
[1744884278385,10.37169041,1595.4,1595.3,2.88773]
[1744884278884,11.62564041,1595.4,1595.3,2.88773]
[1744884286391,9.12674041,1595.4,1595.3,2.88773]
[1744884287586,10.74504041,1595.4,1595.3,2.88773]
[1744884288692,6.55978841,1595.4,1595.3,2.88773]
[1744884289395,9.76758841,1595.4,1595.3,2.88773]
[1744884289896,9.76758841,1595.4,1595.3,1.6337]
[1744884290082,9.76758841,1595.4,1595.3,1.25403]
[1744884290583,6.08005763,1595.4,1595.3,1.25403]
[1744884290788,6.08005763,1595.4,1595.3,2.95303]
[1744884292893,6.08005763,1595.4,1595.3,1.699]
[1744884293097,6.08012763,1595.4,1595.3,1.25403]
[1744884295388,10.26537963,1595.4,1595.3,1.25403]
[1744884299602,1.25403,1595.3,1595.2,2.87227]
[1744884299905,3.68433,1595.3,1595.2,2.87227]
[1744884311508,7.869582,1595.3,1595.2,2.87227]
[1744884317527,1.25411,1595.2,1595.1,1.70270763]
[1744884317730,2.91021,1595.2,1595.1,1.70270763]
[1744884317927,2.91021,1595.2,1595.1,4.60639763]
[1744884318922,2.91021,1595.2,1595.1,3.35220763]
[1744884319124,2.91021,1595.2,1595.1,4.60639763]
[1744884321130,1.6561,1595.2,1595.1,4.60639763]